fUST/lending_fUST_20251012
["ID","MTS","AMOUNT","RATE_DAILY","PERIOD"]
[390963767,1760233870247,-151.0,0.00033444,30]
[390963768,1760233870257,-168.629372,0.00033444,15]
[390963769,1760233870267,-151.0,0.00033444,30]
[390963770,1760233870276,-151.0,0.00033444,30]
[390963771,1760233870286,-151.0,0.00033444,2]
[390963772,1760233870296,-152.181283,0.00033444,30]
[390963773,1760233870309,-151.0,0.00033444,30]
[390963774,1760233870319,-151.0,0.00033444,30]
[390963775,1760233870329,-151.0,0.00033444,30]
[390963776,1760233870340,-151.0,0.00033444,30]
[390963777,1760233870349,-151.0,0.00033444,30]
[390963778,1760233870358,-151.0,0.00033444,30]
[390963779,1760233870367,-547.335366,0.00033444,30]
[390963780,1760233870377,-547.335366,0.00033444,30]
[390963781,1760233870387,-547.335366,0.00033444,30]
[390963782,1760233870397,-547.335366,0.00033444,30]
[390963783,1760233870406,-151.0,0.00033444,30]
[390963784,1760233870415,-151.0,0.00033444,30]
[390963785,1760233870424,-151.0,0.00033444,30]
[390963786,1760233870434,-188.67864,0.00033444,30]
[390963787,1760233870443,-873558.7351,0.00033444,2]
[390963788,1760233870452,-151.0,0.00033444,30]
[390963789,1760233870461,-151.0,0.00033444,30]
[390963790,1760233870471,-217.610415,0.00033444,30]
[390963791,1760233870481,-217.610415,0.00033444,30]
[390963792,1760233870491,-217.610415,0.00033444,30]
[390963793,1760233870500,-151.0,0.00033444,30]
[390963794,1760233870509,-151.0,0.00033444,30]
[390963795,1760233870519,-217.610415,0.00033444,30]
[390963796,1760233870528,-151.0,0.00033444,30]
[390963797,1760233870537,-151.0,0.00033444,30]
[390963798,1760233870547,-151.0,0.00033444,30]
[390963799,1760233870556,-151.0,0.00033444,30]
[390963800,1760233870565,-151.0,0.00033444,30]
[390963801,1760233870574,-151.0,0.00033444,30]
[390963802,1760233870583,-151.0,0.00033444,30]
[390963803,1760233870592,-202.6244,0.00033444,30]
[390963804,1760233870602,-151.0,0.00033444,30]
[390963805,1760233870611,-151.0,0.00033444,30]
[390963806,1760233870620,-202.6244,0.00033444,30]
[390963807,1760233870630,-202.6244,0.00033444,30]
[390963808,1760233870639,-202.6244,0.00033444,30]
[390963809,1760233870649,-151.17011,0.00033444,30]
[390963810,1760233870659,-703.183192,0.00033444,30]
[390963811,1760233870668,-703.183192,0.00033444,30]
[390963812,1760233870677,-703.183192,0.00033444,30]
[390963813,1760233870686,-703.183192,0.00033444,30]
[390963814,1760233870697,-151.0,0.00033444,30]
[390963815,1760233870708,-230.018556,0.00033444,30]
[390963816,1760233870717,-151.0,0.00033444,30]
[390963817,1760233870727,-151.0,0.00033444,30]
[390963818,1760233870736,-230.018556,0.00033444,30]
[390963819,1760233870746,-151.0,0.00033444,30]
[390963820,1760233870755,-151.0,0.00033444,30]
[390963821,1760233870765,-230.018556,0.00033444,30]
[390963822,1760233870774,-151.0,0.00033444,30]
[390963823,1760233870783,-230.018556,0.00033444,30]
[390963824,1760233870792,-151.0,0.00033444,30]
[390963825,1760233870802,-151.0,0.00033444,30]
[390963826,1760233870812,-151.0,0.00033444,30]
[390963827,1760233870821,-151.0,0.00033444,30]
[390963828,1760233870832,-151.0,0.00033444,30]
[390963829,1760233870972,-151.0,0.00033444,30]
[390963830,1760233870981,-151.0,0.00033444,30]
[390963831,1760233870990,-293.42641,0.00033444,30]
[390963832,1760233870999,-293.42641,0.00033444,30]
[390963833,1760233871009,-151.0,0.00033444,30]
[390963834,1760233871019,-293.42641,0.00033444,30]
[390963835,1760233871028,-223.576751,0.00033444,30]
[390963836,1760233871037,-293.42641,0.00033444,30]
[390963837,1760233871046,-151.0,0.00033444,30]
[390963838,1760233871055,-262.646847,0.00033444,30]
[390963839,1760233871065,-151.0,0.00033444,30]
[390963840,1760233871074,-151.0,0.00033444,30]
[390963841,1760233871083,-176.751441,0.00033444,30]
[390963842,1760233871094,-176.751441,0.00033444,30]
[390963843,1760233871103,-176.751441,0.00033444,30]
[390963844,1760233871115,-176.751441,0.00033444,30]
[390963845,1760233871125,-151.0,0.00033444,30]
[390963846,1760233871136,-151.0,0.00033444,30]
[390963847,1760233871146,-151.0,0.00033444,30]
[390963848,1760233871155,-151.0,0.00033444,30]
[390963849,1760233871165,-153.349608,0.00033444,30]
[390963850,1760233871174,-151.0,0.00033444,30]
[390963851,1760233871184,-151.0,0.00033444,30]
[390963852,1760233871195,-151.0,0.00033444,30]
[390963853,1760233871204,-157.185412,0.00033444,30]
[390963854,1760233871214,-157.185412,0.00033444,30]
[390963855,1760233871223,-157.185412,0.00033444,30]
[390963856,1760233871239,-157.185412,0.00033444,30]
[390963857,1760233871248,-151.0,0.00033444,30]
[390963858,1760233871257,-151.0,0.00033444,30]
[390963859,1760233871266,-151.0,0.00033444,30]
[390963860,1760233871276,-151.0,0.00033444,30]
[390963861,1760233871285,-151.0,0.00033444,30]
[390963862,1760233871294,-151.0,0.00033444,30]
[390963863,1760233871303,-151.0,0.00033444,30]
[390963864,1760233871312,-151.0,0.00033444,30]
[390963865,1760233871321,-151.0,0.00033444,30]
[390963866,1760233871330,-564.645773,0.00033444,30]
[390963867,1760233871339,-151.0,0.00033444,30]
[390963868,1760233871348,-564.645773,0.00033444,30]
[390963869,1760233871357,-564.645773,0.00033444,30]
[390963870,1760233871366,-564.645773,0.00033444,30]
[390963871,1760233871375,-151.0,0.00033444,30]
[390963872,1760233871384,-151.0,0.00033444,30]
[390963873,1760233871396,-151.0,0.00033444,30]
[390963874,1760233871405,-199.564048,0.00033444,30]
[390963875,1760233871415,-151.0,0.00033444,30]
[390963876,1760233871424,-509.38404,0.00033444,30]
[390963877,1760233871433,-509.38404,0.00033444,30]
[390963878,1760233871442,-509.38404,0.00033444,30]
[390963879,1760233871452,-151.0,0.00033444,30]
[390963880,1760233871461,-509.38404,0.00033444,30]
[390963881,1760233871471,-151.0,0.00033444,30]
[390963882,1760233871479,-151.0,0.00033444,30]
[390963883,1760233871489,-151.0,0.00033444,30]
[390963884,1760233871498,-159.798529,0.00033444,30]
[390963885,1760233871508,-151.0,0.00033444,30]
[390963886,1760233871518,-151.0,0.00033444,30]
[390963887,1760233871528,-151.0,0.00033444,30]
[390963888,1760233871537,-151.0,0.00033444,30]
[390963889,1760233871547,-153.865255,0.00033444,30]
[390963890,1760233871557,-555.894207,0.00033444,30]
[390963891,1760233871567,-555.894207,0.00033444,30]
[390963892,1760233871577,-555.894207,0.00033444,30]
[390963893,1760233871587,-555.894207,0.00033444,30]
[390963894,1760233871596,-151.0,0.00033444,30]
[390963895,1760233871606,-151.0,0.00033444,30]
[390963896,1760233871616,-151.0,0.00033444,30]
[390963897,1760233871627,-500.3648731,0.00033473,5]
[390963898,1760233871637,-250.0,0.000335,10]
[390963899,1760233871647,-430.54945722,0.000335,2]
[390963900,1760233871657,-981.0,0.00033502,2]
[390963901,1760233871666,-2160.0,0.00033502,2]
[390963902,1760233871675,-630.0,0.00033502,2]
[390963903,1760233871685,-150.0,0.00033502,2]
[390963904,1760233871694,-250.0,0.000336,10]
[390963905,1760233871703,-156.305433,0.00033617,7]
[390963906,1760233871713,-159.347131,0.00033617,7]
[390963907,1760233871723,-250.0,0.000337,10]
[390963908,1760233871744,-250.0,0.000338,10]
[390963909,1760233871759,-1100.0,0.000338,7]
[390963910,1760233871769,-297.8851395,0.00033838,30]
[390963911,1760233871779,-588.4106815,0.00033838,30]
[390963912,1760233871788,-588.4106815,0.00033838,30]
[390963913,1760233871798,-588.4106815,0.00033838,30]
[390963914,1760233871807,-297.8851395,0.00033838,30]
[390963915,1760233871816,-588.4106815,0.00033838,30]
[390963916,1760233871825,-306.0,0.00033838,30]
[390963917,1760233871834,-252.242272,0.000339,10]
[390963918,1760233871843,-588.4106815,0.00033952,30]
[390963919,1760233871853,-609.42,0.00033972,20]
[390963920,1760233871862,-298.08050243,0.00034,30]
[390963921,1760233871871,-156.305433,0.00034,60]
[390963922,1760233871880,-159.347131,0.00034,60]
[390963923,1760233871889,-600.0,0.00034026,2]
[390963924,1760233871899,-1782.07353957,0.00034229,2]
[390963925,1760233871908,-12983.35,0.00034246,120]
[390963926,1760233871917,-156.305433,0.00034248,30]
[390963927,1760233871926,-159.347131,0.00034248,30]
[390963928,1760233871935,-200.0,0.00034264,120]
[390963929,1760233871944,-6954.26,0.000343,14]
[390963930,1760233871953,-600.0,0.00034381,2]
[390963931,1760233871963,-410.4356376,0.00034464,30]
[390963932,1760233871972,-391.9198272,0.00034464,30]
[390963933,1760233871981,-391.9198272,0.00034464,30]
[390963934,1760233871989,-391.9198272,0.00034464,30]
[390963935,1760233871999,-399.4831484,0.00034464,30]
[390963936,1760233872009,-477.5630224,0.00034464,30]
[390963937,1760233872019,-588.4106815,0.00034466,30]
[390963938,1760233872027,-189.7226975,0.00034466,30]
[390963939,1760233872036,-609.42,0.0003452,21]
[390963940,1760233872045,-159.0,0.000346,120]
[390963941,1760233872055,-1100.0,0.00034622,7]
[390963942,1760233872064,-189.7226975,0.0003466,30]
[390963943,1760233872073,-190.8476436,0.0003466,30]
[390963944,1760233872082,-3030.97,0.000347,2]
[390963945,1760233872092,-153.0,0.00034715,30]
[390963946,1760233872101,-153.0,0.00034715,30]
[390963947,1760233872110,-154.9340188,0.00034715,30]
[390963948,1760233872122,-600.0,0.00034735,2]
[390963949,1760233872131,-297.8851395,0.00034738,30]
[390963950,1760233872141,-162.8757457,0.00034738,30]
[390963951,1760233872150,-588.4106815,0.00034738,30]
[390963952,1760233872161,-588.4106815,0.00034738,30]
[390963953,1760233872170,-156.305433,0.00034799,2]
[390963954,1760233872179,-159.347131,0.00034799,2]
[390963955,1760233872187,-186.79889018,0.00034849,120]
[390963956,1760233872199,-251.14079896,0.00034999,30]
[390963957,1760233872209,-8814.41007655,0.00035,2]
[390963958,1760233872218,-156.305433,0.00035,60]
[390963959,1760233872227,-159.347131,0.00035,60]
[390963960,1760233872236,-8000.0,0.00035,30]
[390963961,1760233872246,-609.42,0.00035068,22]
[390963962,1760233872255,-601.56431278,0.0003509,2]
[390963963,1760233872265,-259.80291695,0.00035232,30]
[390963964,1760233872275,-151.30375938,0.00035232,30]
[390963965,1760233872284,-17940.1,0.00035232,30]
[390963966,1760233872294,-153.26398906,0.00035232,30]
[390963967,1760233872303,-157.3806513,0.00035232,30]
[390963968,1760233872313,-153.25029358,0.00035232,30]
[390963969,1760233872322,-151.20636396,0.00035232,30]
[390963970,1760233872332,-504.75123547,0.00035232,30]
[390963971,1760233872340,-521.56339739,0.00035232,30]
[390963972,1760233872349,-506.20752659,0.00035232,30]
[390963973,1760233872359,-157.06506265,0.00035232,30]
[390963974,1760233872368,-250.0,0.00035232,30]
[390963975,1760233872378,-1960.58989201,0.00035232,30]
[390963976,1760233872387,-160.0,0.00035261,5]
[390963977,1760233872398,-371.6594448,0.00035263,30]
[390963978,1760233872407,-153.0,0.00035286,30]
[390963979,1760233872416,-153.0,0.00035286,30]
[390963980,1760233872425,-153.0,0.00035286,30]
[390963981,1760233872434,-200.48081747,0.00035443,10]
[390963982,1760233872443,-162.666953,0.00035444,30]
[390963983,1760233872452,-151.0,0.00035444,30]
[390963984,1760233872461,-151.0,0.00035444,30]
[390963985,1760233872470,-151.0,0.00035444,30]
[390963986,1760233872480,-151.0,0.00035444,30]
[390963987,1760233872489,-151.0,0.00035444,30]
[390963988,1760233872498,-154.507525,0.00035444,30]
[390963989,1760233872507,-439.098643,0.00035444,30]
[390963990,1760233872516,-439.098643,0.00035444,30]
[390963991,1760233872525,-151.0,0.00035444,30]
[390963992,1760233872534,-200.0,0.00035444,7]
[390963993,1760233872543,-439.098643,0.00035444,30]
[390963994,1760233872551,-439.098643,0.00035444,30]
[390963995,1760233872561,-151.0,0.00035444,30]
[390963996,1760233872570,-372.045092,0.00035444,30]
[390963997,1760233872579,-372.045092,0.00035444,30]
[390963998,1760233872588,-151.0,0.00035444,30]
[390963999,1760233872597,-372.045092,0.00035444,30]
[390964000,1760233872606,-372.045092,0.00035444,30]
[390964001,1760233872616,-183.044696,0.00035444,30]
[390964002,1760233872625,-183.044696,0.00035444,30]
[390964003,1760233872634,-183.044696,0.00035444,30]
[390964004,1760233872644,-183.044696,0.00035444,30]
[390964005,1760233872653,-168.629372,0.00035444,15]
[390964006,1760233872663,-168.629372,0.00035444,15]
[390964007,1760233872672,-168.629372,0.00035444,15]
[390964008,1760233872681,-168.629372,0.00035444,15]
[390964009,1760233872691,-151.0,0.00035444,30]
[390964010,1760233872703,-151.0,0.00035444,2]
[390964011,1760233872714,-151.0,0.00035444,30]
[390964012,1760233872724,-151.0,0.00035444,30]
[390964013,1760233872734,-151.0,0.00035444,30]
[390964014,1760233872743,-251.757214,0.00035444,30]
[390964015,1760233872752,-151.0,0.00035444,30]
[390964016,1760233872762,-210.776219,0.00035444,30]
[390964017,1760233872771,-547.335366,0.00035444,30]
[390964018,1760233872781,-547.335366,0.00035444,30]
[390964019,1760233872790,-547.335366,0.00035444,30]
[390964020,1760233872800,-547.335366,0.00035444,30]
[390964021,1760233872810,-151.0,0.00035444,30]
[390964022,1760233872818,-151.0,0.00035444,30]
[390964023,1760233872828,-151.0,0.00035444,30]
[390964024,1760233872837,-559113.00354306,0.00035444,7]
[390964025,1760233872913,-500.0,0.00021917,2]
[390964026,1760233872922,-937.88,0.00021917,2]
[390964027,1760233872931,-10664.41,0.00035444,7]
[390964028,1760233873357,-3e-08,0.00021917,2]
[390964029,1760233875293,5000.0,0.000215,2]
[390964030,1760233875438,2633.13103519,0.000215,2]
[390964031,1760233875475,-295.40227718,0.000215,2]
[390964032,1760233875832,150.0,0.00019199,2]
[390964033,1760233875870,200.38,0.00020114,2]
[390964034,1760233875906,300.58,0.00021028,2]
[390964035,1760233895232,5000.0,0.00021394,2]
[390964037,1760233917374,5000.0,0.00021394,2]
[390964038,1760233939512,0.01,0.00021394,2]
[390964039,1760233939536,4999.99,0.00021394,2]
[390964040,1760233949773,150.0,0.00019277,2]
[390964041,1760233950210,245.62,0.00020195,2]
[390964042,1760233950636,368.44,0.00021113,2]
[390964043,1760233963089,5000.0,0.00021113,2]
[390964044,1760233978594,-299.99999997,0.000214,2]
[390964045,1760233980065,-286.72368673,0.000214,2]
[390964046,1760233984194,-13.27631327,0.000214,2]
[390964047,1760233984216,-220.69683957,0.000214,2]
[390964048,1760233985807,5000.0,0.00021394,2]
[390964049,1760234001824,-79.30316043,0.000214,2]
[390964050,1760234001850,-300.0,0.000214,2]
[390964051,1760234008016,625.82172124,0.000214,2]
[390964052,1760234019584,300.0,0.000211,2]
[390964054,1760234028980,150.0,0.00019112,2]
[390964055,1760234029917,231.78,0.00020022,2]
[390964056,1760234030356,347.67,0.00020932,2]
[390964057,1760234030869,300.0,0.000211,2]
[390964058,1760234041719,300.0,0.000211,2]
[390964059,1760234042488,-166.95068233,0.00021499,2]
[390964060,1760234045368,-263.35740283,0.000215,2]
[390964061,1760234048011,151.0,0.00017,2]
[390964062,1760234049848,151.0,0.000181,2]
[390964063,1760234050868,-156.76143765,0.000215,2]
[390964064,1760234051896,300.0,0.000211,2]
[390964065,1760234058703,300.0,0.000211,2]
[390964066,1760234058893,5000.0,0.000214,2]
[390964067,1760234062534,300.0,0.000211,2]
[390964068,1760234066905,587.06952281,0.000214,2]
[390964069,1760234069153,-1005.13980431,0.00021599,2]
[390964070,1760234069615,300.0,0.000211,2]
[390964071,1760234082279,5000.0,0.00021599,2]
[390964072,1760234084188,-188.15257237,0.00021816,2]
[390964073,1760234105569,5000.0,0.00021816,2]
[390964074,1760234108651,150.0,0.00019239,2]
[390964075,1760234109090,213.21,0.00020155,2]
[390964076,1760234109698,319.82,0.00021072,2]
[390964077,1760234113368,151.0,0.00017,2]
[390964078,1760234122466,500.0,0.00021842,2]
[390964079,1760234129586,153.60700925,0.0002,5]
[390964080,1760234130967,3616.08398186,0.00021842,2]
[390964081,1760234177208,157.0,0.00024,120]
[390964082,1760234190463,150.0,0.00019207,2]
[390964083,1760234190877,195.83,0.00020121,2]
[390964084,1760234191309,293.74,0.00021036,2]
[390964085,1760234269104,150.0,0.00019478,2]
[390964086,1760234269519,179.55,0.00020406,2]
[390964087,1760234269920,269.32,0.00021333,2]
[390964088,1760234294762,164.63350078,0.00021815,2]
[390964089,1760234299764,154.0,0.00024,120]
[390964090,1760234347748,150.0,0.00019312,2]
[390964091,1760234348180,289.1,0.00020232,2]
[390964092,1760234348581,433.65,0.00021152,2]
[390964162,1760234428181,182.7,0.00018954,2]
[390964164,1760234428590,365.41,0.00019857,2]
[390964165,1760234429041,548.11,0.00020759,2]
[390964166,1760234429470,730.82,0.00021662,2]
[390964177,1760234439832,422.99149928,0.00021842,2]
[390964185,1760234462646,586.69738241,0.00021842,2]
[390964186,1760234485290,500.0,0.00021842,2]
[390964187,1760234501244,164.63350077,0.00021816,2]
[390964188,1760234508388,806.43094072,0.00021842,2]
[390964189,1760234509290,-229.52217159,0.00021906,2]
[390964190,1760234509322,-1200.0,0.00021906,2]
[390964191,1760234509352,-300.0,0.00021906,2]
[390964192,1760234509385,-466.27,0.00021907,3]
[390964193,1760234509414,-233.14,0.00021907,3]
[390964194,1760234509442,-699.43,0.00021907,3]
[390964195,1760234509595,-4362.21,0.00021907,10]
[390964196,1760234509718,-4362.21,0.00021907,10]
[390964197,1760234509748,-75.59,0.00021914,2]
[390964198,1760234511317,-1124.41,0.00021914,2]
[390964199,1760234516224,2908.14,0.00021907,10]
[390964200,1760234522284,300.0,0.00021915,2]
[390964201,1760234527861,2423.45,0.00021907,10]
[390964202,1760234528407,159.86,0.00019094,2]
[390964203,1760234528838,319.72,0.00020004,2]
[390964204,1760234529297,479.58,0.00020913,2]
[390964205,1760234529747,639.45,0.00021822,2]
[390964206,1760234531232,520.99,0.00021438,2]
[390964207,1760234531253,1173.334388,0.00021438,2]
[390964208,1760234531546,2183.88017759,0.00021916,2]
[390964209,1760234539137,2019.54,0.00021907,10]
[390964210,1760234545791,1200.0,0.00021915,2]
[390964211,1760234549535,1682.95,0.00021907,10]
[390964212,1760234553029,500.0,0.00021915,2]
[390964213,1760234553057,180.68118654,0.00021915,2]
[390964214,1760234553085,618.57028921,0.00021915,2]
[390964215,1760234553119,441.05395866,0.00021915,2]
[390964216,1760234553146,58.94604134,0.00021915,2]
[390964217,1760234553176,213.49048399,0.00021915,2]
[390964218,1760234553204,500.0,0.00021915,2]
[390964219,1760234553235,500.0,0.00021915,2]
[390964220,1760234553266,500.0,0.00021915,2]
[390964221,1760234553297,500.0,0.00021915,2]
[390964222,1760234553331,500.0,0.00021915,2]
[390964223,1760234553363,494.34007584,0.00021915,2]
[390964224,1760234553400,500.0,0.00021915,2]
[390964225,1760234553432,500.0,0.00021915,2]
[390964226,1760234553462,500.0,0.00021915,2]
[390964227,1760234553500,500.0,0.00021915,2]
[390964228,1760234553531,500.0,0.00021915,2]
[390964229,1760234553569,500.0,0.00021915,2]
[390964230,1760234553599,500.0,0.00021915,2]
[390964231,1760234553628,500.0,0.00021915,2]
[390964232,1760234553656,478.35401602,0.00021915,2]
[390964233,1760234553683,500.0,0.00021915,2]
[390964234,1760234553713,500.0,0.00021915,2]
[390964235,1760234553744,500.0,0.00021915,2]
[390964236,1760234553773,500.0,0.00021915,2]
[390964237,1760234553804,254.87938281,0.00021915,2]
[390964238,1760234576066,5000.0,0.00021888,2]
[390964239,1760234598613,5000.0,0.00021888,2]
[390964240,1760234614873,0.01,0.00019084,2]
[390964241,1760234614896,159.21,0.00019084,2]
[390964242,1760234615316,318.44,0.00019992,2]
[390964243,1760234615788,477.66,0.00020901,2]
[390964244,1760234616242,636.88,0.0002181,2]
[390964245,1760234621174,5000.0,0.00021888,2]
[390964246,1760234695897,150.0,0.00018948,2]
[390964247,1760234696398,277.91,0.0001985,2]
[390964248,1760234697041,416.87,0.00020753,2]
[390964249,1760234697246,555.82,0.00021655,2]
[390964250,1760234721736,1892.0,0.00030235,60]
[390964252,1760234775847,150.0,0.00018962,2]
[390964253,1760234776258,275.1,0.00019865,2]
[390964254,1760234776672,412.65,0.00020768,2]
[390964255,1760234777069,550.2,0.00021671,2]
[390964256,1760234854889,150.0,0.00019005,2]
[390964257,1760234855306,239.77,0.0001991,2]
[390964258,1760234855798,359.66,0.00020815,2]
[390964259,1760234856204,479.54,0.0002172,2]
[390964260,1760234879946,219.29,0.00015225,2]
[390964261,1760234880225,219.29,0.00015225,2]
[390964262,1760234880533,219.29,0.00015225,2]
[390964263,1760234884975,324.62,0.00020914,2]
[390964264,1760234884998,10000.01,0.00020914,2]
[390964265,1760234885021,10000.01,0.00020914,2]
[390964266,1760234885041,9211.0665703,0.00020914,2]
[390964267,1760234933028,150.0,0.00018967,2]
[390964268,1760234933490,208.49,0.00019871,2]
[390964269,1760234934166,312.73,0.00020774,2]
[390964270,1760234934384,117.7234297,0.00021677,2]
[390964271,1760234934406,299.2565703,0.00021677,2]
[390964276,1760235012191,150.0,0.00018945,2]
[390964277,1760235012662,180.79,0.00019847,2]
[390964278,1760235013096,271.18,0.00020749,2]
[390964279,1760235013551,361.58,0.00021651,2]
[390964420,1760235038069,-300.0,0.00021905,2]
[390964421,1760235038080,-300.0,0.00021905,2]
[390964422,1760235038091,-1200.0,0.00021905,2]
[390964423,1760235038100,-1200.0,0.00021906,2]
[390964424,1760235038110,-263.39414634,0.00021906,2]
[390964425,1760235038120,-1786.01,0.00021907,3]
[390964427,1760235038130,-893.0,0.00021907,3]
[390964428,1760235038139,-446.5,0.00021907,3]
[390964429,1760235038149,-223.25,0.00021907,3]
[390964430,1760235038159,-186.05,0.00021907,3]
[390964431,1760235038171,-558.15,0.00021907,3]
[390964432,1760235038181,-50000.0,0.00021907,2]
[390964433,1760235038199,-579.08094816,0.00021916,2]
[390964434,1760235038212,-237.07836863,0.00021916,2]
[390964435,1760235038222,-500.0,0.00021916,2]
[390964436,1760235038232,-500.0,0.00021916,2]
[390964437,1760235038242,-542.1454975,0.00021916,2]
[390964438,1760235038251,-164.26155733,0.00021916,2]
[390964439,1760235038261,-500.0,0.00021916,2]
[390964440,1760235038271,-500.0,0.00021916,2]
[390964441,1760235038281,-500.0,0.00021916,2]
[390964442,1760235038291,-500.0,0.00021916,2]
[390964443,1760235038301,-500.0,0.00021916,2]
[390964444,1760235038311,-370.60855547,0.00021916,2]
[390964445,1760235038321,-299.43400759,0.00021916,2]
[390964446,1760235038331,-500.0,0.00021916,2]
[390964447,1760235038346,-500.0,0.00021916,2]
[390964448,1760235038356,-500.0,0.00021916,2]
[390964449,1760235038366,-500.0,0.00021916,2]
[390964450,1760235038376,-500.0,0.00021916,2]
[390964451,1760235038386,-500.0,0.00021916,2]
[390964452,1760235038396,-500.0,0.00021916,2]
[390964453,1760235038406,-500.0,0.00021916,2]
[390964454,1760235038415,-500.0,0.00021916,2]
[390964455,1760235038427,-500.0,0.00021916,2]
[390964456,1760235038438,-500.0,0.00021916,2]
[390964457,1760235038449,-500.0,0.00021916,2]
[390964458,1760235038463,-275.79180143,0.00021916,2]
[390964459,1760235038473,-500.0,0.00021916,2]
[390964460,1760235038483,-500.0,0.00021916,2]
[390964461,1760235038494,-500.0,0.00021916,2]
[390964462,1760235038506,-500.0,0.00021916,2]
[390964463,1760235038516,-500.0,0.00021916,2]
[390964464,1760235038527,-500.0,0.00021917,2]
[390964465,1760235038539,-500.0,0.00021917,2]
[390964466,1760235038549,-500.0,0.00021917,2]
[390964467,1760235038559,-500.0,0.00021917,2]
[390964468,1760235038569,-500.0,0.00021917,2]
[390964469,1760235038579,-500.0,0.00021917,2]
[390964470,1760235038589,-500.0,0.00021917,2]
[390964471,1760235038598,-548.74,0.00021917,2]
[390964472,1760235038608,-519.45,0.00021917,2]
[390964473,1760235038617,-500.62465462,0.00021917,2]
[390964474,1760235038627,-500.0,0.00021917,2]
[390964475,1760235038636,-500.0,0.00021917,2]
[390964476,1760235038646,-503.24254368,0.00021917,2]
[390964477,1760235038658,-500.0,0.00021917,2]
[390964478,1760235038668,-500.0,0.00021917,2]
[390964479,1760235038678,-500.0,0.00021917,2]
[390964480,1760235038687,-500.0,0.00021917,2]
[390964481,1760235038697,-500.0,0.00021917,2]
[390964482,1760235038706,-500.0,0.00021917,2]
[390964483,1760235038716,-500.0,0.00021917,2]
[390964484,1760235038725,-500.0,0.00021917,2]
[390964485,1760235038735,-500.0,0.00021917,2]
[390964486,1760235038744,-633.85,0.00021917,2]
[390964487,1760235038754,-500.0,0.00021917,2]
[390964488,1760235038764,-500.0,0.00021917,2]
[390964489,1760235038773,-500.0,0.00021917,2]
[390964490,1760235038783,-648.01915172,0.00021917,2]
[390964491,1760235038792,-500.0,0.00021917,2]
[390964492,1760235038802,-500.0,0.00021917,2]
[390964493,1760235038811,-500.0,0.00021917,2]
[390964494,1760235038821,-500.0,0.00021917,2]
[390964495,1760235038830,-500.0,0.00021917,2]
[390964496,1760235038840,-500.0,0.00021917,2]
[390964497,1760235038850,-500.0,0.00021917,2]
[390964498,1760235038868,-213.46,0.00021917,2]
[390964499,1760235038877,-500.0,0.00021917,2]
[390964500,1760235038887,-500.0,0.00021917,2]
[390964501,1760235038896,-500.0,0.00021917,2]